fUST/lending_fUST_20260425
["ID","MTS","AMOUNT","RATE_DAILY","PERIOD"]
[421125609,1777111832579,-607.35310296,6.999e-05,2]
[421125611,1777111832589,-20000.0,7e-05,2]
[421125613,1777111832598,-300.0,7.139e-05,2]
[421125615,1777111832608,-300.0,7.139e-05,2]
[421125616,1777111832617,-300.0,7.139e-05,2]
[421125618,1777111832627,-300.0,7.139e-05,2]
[421125620,1777111832636,-300.0,7.139e-05,2]
[421125622,1777111832646,-300.0,7.139e-05,2]
[421125624,1777111832655,-300.0,7.139e-05,2]
[421125626,1777111832664,-300.0,7.139e-05,2]
[421125628,1777111832674,-300.0,7.139e-05,2]
[421125630,1777111832684,-300.0,7.139e-05,2]
[421125632,1777111832694,-300.0,7.139e-05,2]
[421125634,1777111832704,-300.0,7.139e-05,2]
[421125636,1777111832713,-300.0,7.139e-05,2]
[421125638,1777111832723,-300.0,7.139e-05,2]
[421125640,1777111832733,-300.0,7.139e-05,2]
[421125642,1777111832743,-600.0,7.281e-05,2]
[421125644,1777111832752,-22.26486688,7.6e-05,2]
[421125646,1777111832762,-720.0,8.009e-05,2]
[421125648,1777111832771,-335.3420656,8.623e-05,2]
[421125650,1777111832780,-864.0,8.81e-05,2]
[421125652,1777111832790,-325.4528442,8.811e-05,2]
[421125654,1777111832799,-151.0,8.811e-05,2]
[421125656,1777111832808,-151.6296512,8.811e-05,2]
[421125658,1777111832817,-173.0,8.968e-05,7]
[421125660,1777111832826,-20000.0,9.095e-05,2]
[421125662,1777111832836,-335.21255813,9.096e-05,2]
[421125664,1777111832844,-4243.70712314,9.097e-05,2]
[421125666,1777111832856,-964.89145865,9.097e-05,2]
[421125763,1777111838667,-77712.41572834,9.097e-05,2]
[421125764,1777111838722,-26998.4984452,9.097e-05,2]
[421125796,1777111847496,-152.7010237,8.817e-05,2]
[421125797,1777111847510,-3030.80257404,9.006e-05,2]
[421125798,1777111847520,-45067.91006995,9.097e-05,2]
[421125799,1777111847532,-478.55877297,9.097e-05,2]
[421125801,1777111847877,-32793.61533202,9.097e-05,2]
[421125802,1777111847932,-1699.29526093,9.097e-05,2]
[421125916,1777113038877,-455.7345146,7.995e-05,2]
[421125917,1777113038888,-291.22634016,8.624e-05,2]
[421125918,1777113038899,-300.0,8.789e-05,2]
[421125919,1777113038909,-498.41914524,8.789e-05,2]
[421125920,1777113039058,-701.58085476,8.789e-05,2]
[421125921,1777113039069,-300.0,8.789e-05,2]
[421125922,1777113039079,-500.0,8.789e-05,2]
[421125923,1777113039089,-500.0,8.789e-05,2]
[421125924,1777113039099,-500.0,8.789e-05,2]
[421125925,1777113039110,-500.0,8.789e-05,2]
[421125926,1777113039121,-500.0,8.789e-05,2]
[421125928,1777113039131,-500.0,8.789e-05,2]
[421125929,1777113039141,-500.0,8.789e-05,2]
[421125930,1777113039151,-500.0,8.789e-05,2]
[421125931,1777113039162,-500.0,8.789e-05,2]
[421125932,1777113039172,-500.0,8.789e-05,2]
[421125933,1777113039183,-500.0,8.789e-05,2]
[421125934,1777113039193,-500.0,8.789e-05,2]
[421125935,1777113039204,-500.0,8.789e-05,2]
[421125936,1777113039214,-500.0,8.789e-05,2]
[421125937,1777113039224,-500.0,8.789e-05,2]
[421125938,1777113039235,-503.18362988,8.789e-05,2]
[421125939,1777113039245,-500.0,8.789e-05,2]
[421125940,1777113039256,-500.0,8.789e-05,2]
[421125941,1777113039266,-494.14165318,8.789e-05,2]
[421125942,1777113039276,-513.05949585,8.789e-05,2]
[421125943,1777113039287,-500.0,8.789e-05,2]
[421125944,1777113039297,-515.08045929,8.789e-05,2]
[421125945,1777113039307,-500.0,8.789e-05,2]
[421125946,1777113039318,-500.0,8.789e-05,2]
[421125947,1777113039328,-500.0,8.789e-05,2]
[421125948,1777113039338,-500.0,8.789e-05,2]
[421125949,1777113039348,-500.0,8.789e-05,2]
[421125950,1777113039359,-500.0,8.789e-05,2]
[421125951,1777113039369,-500.0,8.789e-05,2]
[421125952,1777113039379,-500.0,8.789e-05,2]
[421125953,1777113039389,-500.0,8.789e-05,2]
[421125954,1777113039399,-500.0,8.789e-05,2]
[421125955,1777113039410,-500.0,8.789e-05,2]
[421125956,1777113039420,-500.0,8.789e-05,2]
[421125957,1777113039430,-500.0,8.789e-05,2]
[421125958,1777113039440,-500.0,8.789e-05,2]
[421125959,1777113039450,-500.0,8.789e-05,2]
[421125960,1777113039460,-500.0,8.789e-05,2]
[421125961,1777113039471,-500.0,8.789e-05,2]
[421125962,1777113039481,-500.0,8.789e-05,2]
[421125963,1777113039491,-500.0,8.789e-05,2]
[421125964,1777113039502,-500.0,8.789e-05,2]
[421125965,1777113039512,-500.0,8.789e-05,2]
[421125966,1777113039523,-500.0,8.789e-05,2]
[421125967,1777113039533,-500.0,8.789e-05,2]
[421125968,1777113039543,-500.0,8.789e-05,2]
[421125969,1777113039554,-500.0,8.789e-05,2]
[421125970,1777113039564,-500.0,8.789e-05,2]
[421125971,1777113039575,-196.47841516,8.789e-05,2]
[421125972,1777113039585,-500.0,8.789e-05,2]
[421125973,1777113039595,-500.0,8.789e-05,2]
[421125974,1777113039605,-500.0,8.789e-05,2]
[421125975,1777113039615,-593.67402435,8.789e-05,2]
[421125976,1777113039626,-500.0,8.789e-05,2]
[421125977,1777113039636,-500.0,8.789e-05,2]
[421125978,1777113039646,-500.0,8.789e-05,2]
[421125979,1777113039656,-500.0,8.789e-05,2]
[421125980,1777113039667,-500.0,8.789e-05,2]
[421125981,1777113039677,-500.0,8.789e-05,2]
[421125982,1777113039687,-442.11446693,8.79e-05,2]
[421125983,1777113039696,-500.0,8.791e-05,2]
[421125984,1777113039707,-215.47959174,8.791e-05,2]
[421125985,1777113039724,-19.16919895,8.791e-05,2]
[421125986,1777113039734,-150.6421436,8.792e-05,2]
[421125987,1777113039744,-7333.82712823,8.792e-05,2]
[421125988,1777113039757,-353.29261265,8.792e-05,2]
[421126003,1777113041000,-7741.64802382,8.792e-05,2]
[421126004,1777113041010,-23389.72240779,8.792e-05,2]
[421126005,1777113041059,-4182.12112569,8.792e-05,2]
[421126016,1777113043665,-2455.38369134,8.792e-05,2]
[421126021,1777113046826,-8516.96415256,8.792e-05,2]
[421126023,1777113046838,-4132.80713712,8.792e-05,2]
[421126025,1777113047055,-12165.91081464,8.792e-05,2]
[421126026,1777113047066,-29268.53033848,8.792e-05,2]
[421126027,1777113047075,-101065.38864921,8.794e-05,2]
[421126028,1777113047085,-500.0,8.811e-05,2]
[421126029,1777113047094,-554.67579262,8.811e-05,2]
[421126030,1777113047103,-500.0,8.811e-05,2]
[421126031,1777113047113,-523.89247322,8.811e-05,2]
[421126032,1777113047122,-151.5,8.811e-05,2]
[421126033,1777113047131,-151.5,8.811e-05,2]
[421126034,1777113047140,-151.5,8.811e-05,2]
[421126035,1777113047149,-151.5,8.811e-05,2]
[421126036,1777113047158,-151.5,8.811e-05,2]
[421126037,1777113047168,-151.5,8.811e-05,2]
[421126038,1777113047178,-251.72003863,8.811e-05,2]
[421126039,1777113047186,-151.5,8.811e-05,2]
[421126040,1777113047195,-157.4011446,8.811e-05,2]
[421126041,1777113047205,-5.37770826,8.811e-05,2]
[421126042,1777113047221,-569.37999998,8.811e-05,2]
[421126043,1777113047232,-9.24229176,8.811e-05,2]
[421126044,1777113047241,-584.0,8.811e-05,2]
[421126045,1777113047250,-314.63807272,8.811e-05,2]
[421126046,1777113081658,-300.0,8.793e-05,2]
[421126073,1777114238230,-458.78151,7.173e-05,2]
[421126074,1777114238241,-189.02849,7.23e-05,2]
[421126075,1777114238337,-487.22037858,7.23e-05,2]
[421126076,1777114238347,-1150.42333581,7.303e-05,2]
[421126077,1777114238356,-285.40181335,7.414e-05,2]
[421126078,1777114238365,-300.0,7.994e-05,2]
[421126079,1777114238374,-1200.0,7.994e-05,2]
[421126080,1777114238384,-289.4171455,7.995e-05,2]
[421126081,1777114238393,-325.424704,7.995e-05,2]
[421126082,1777114238402,-455.657834,7.995e-05,2]
[421126083,1777114238411,-152.397613,7.995e-05,2]
[421126084,1777114238421,-300.0,8.154e-05,2]
[421126085,1777114238430,-300.0,8.154e-05,2]
[421126086,1777114238439,-300.0,8.154e-05,2]
[421126087,1777114238448,-300.0,8.154e-05,2]
[421126088,1777114238457,-300.0,8.154e-05,2]
[421126089,1777114238466,-300.0,8.154e-05,2]
[421126090,1777114238475,-300.0,8.154e-05,2]
[421126091,1777114238484,-300.0,8.154e-05,2]
[421126092,1777114238493,-300.0,8.154e-05,2]
[421126093,1777114238503,-300.0,8.154e-05,2]
[421126094,1777114238513,-300.0,8.154e-05,2]
[421126095,1777114238522,-300.0,8.154e-05,2]
[421126096,1777114238531,-300.0,8.154e-05,2]
[421126097,1777114238540,-300.0,8.154e-05,2]
[421126098,1777114238549,-300.0,8.154e-05,2]
[421126099,1777114238558,-500.0,8.592e-05,2]
[421126100,1777114238567,-29882.96483496,8.593e-05,2]
[421126101,1777114238576,-500.0,8.6e-05,2]
[421126102,1777114238585,-171217.89804469,8.693e-05,2]
[421126103,1777114238596,-18646.02527327,8.693e-05,2]
[421126104,1777114238607,-1224.85871026,8.693e-05,2]
[421126109,1777114240230,-404.30602256,8.693e-05,2]
[421126110,1777114240242,-7787.3,8.693e-05,2]
[421126121,1777114243055,-165.78612142,8.693e-05,2]
[421126127,1777114246128,-23785.48540802,8.693e-05,2]
[421126128,1777114246445,-6116.04166623,8.693e-05,2]
[421126218,1777114862042,-151.0,7.981e-05,2]
[421126219,1777114878782,-279.69377709,8.287e-05,2]
[421126220,1777114878811,-606.0,8.591e-05,2]
[421126221,1777114878840,-194.0,8.591e-05,2]
[421126222,1777114878867,-221.5712948,8.592e-05,2]
[421126223,1777114878894,-500.0,8.592e-05,2]
[421126224,1777114878922,-500.0,8.592e-05,2]
[421126225,1777114908298,-500.0,8.592e-05,2]
[421126226,1777114908325,-500.0,8.592e-05,2]
[421126227,1777114908353,-317.06161309,8.592e-05,2]
[421126228,1777114937286,-274.09990155,8.642e-05,2]
[421126229,1777114937328,-386.74820221,8.652e-05,2]
[421126230,1777114966452,-274.09990155,8.652e-05,2]
[421126243,1777115213930,-5000.0,7.901e-05,2]
[421126244,1777115213954,-268.61790351,7.941e-05,2]
[421126245,1777115213977,-455.8715388,7.981e-05,2]
[421126246,1777115214000,-151.0,7.981e-05,2]
[421126247,1777115214021,-452.2905693,7.981e-05,2]
[421126248,1777115214042,-324.8830476,7.981e-05,2]
[421126249,1777115214068,-248.92937308,8.593e-05,2]
[421126250,1777115214090,-500.0,8.593e-05,2]
[421126251,1777115214114,-500.0,8.593e-05,2]
[421126252,1777115214137,-500.0,8.593e-05,2]
[421126253,1777115214159,-500.0,8.593e-05,2]
[421126254,1777115214183,-500.0,8.593e-05,2]
[421126255,1777115214206,-500.0,8.593e-05,2]
[421126256,1777115214230,-98.40756771,8.593e-05,2]
[421126257,1777115218992,-401.59243229,8.593e-05,2]
[421126258,1777115219014,-500.0,8.593e-05,2]
[421126259,1777115219036,-500.0,8.593e-05,2]
[421126260,1777115219060,-500.0,8.593e-05,2]
[421126261,1777115219083,-223.89782881,8.593e-05,2]
[421126262,1777115219103,-500.0,8.593e-05,2]
[421126263,1777115219128,-500.0,8.593e-05,2]
[421126264,1777115219151,-500.0,8.593e-05,2]
[421126265,1777115219174,-500.0,8.593e-05,2]
[421126266,1777115219196,-297.8914972,8.593e-05,2]
[421126267,1777115219218,-500.0,8.593e-05,2]
[421126268,1777115219239,-500.0,8.593e-05,2]
[421126269,1777115219262,-500.0,8.593e-05,2]
[421126270,1777115219500,-500.0,8.593e-05,2]
[421126271,1777115219523,-500.0,8.593e-05,2]
[421126272,1777115219547,-500.0,8.593e-05,2]
[421126273,1777115219568,-500.0,8.593e-05,2]
[421126274,1777115219592,-500.0,8.593e-05,2]
[421126275,1777115219616,-500.0,8.593e-05,2]
[421126276,1777115219639,-500.0,8.593e-05,2]
[421126277,1777115219662,-576.6182417,8.593e-05,2]
[421126278,1777115220727,-24.42341682,8.593e-05,2]
[421126279,1777115220750,-500.0,8.593e-05,2]
[421126280,1777115220775,-500.0,8.593e-05,2]
[421126281,1777115220799,-500.0,8.593e-05,2]
[421126282,1777115220823,-8475.57658318,8.594e-05,2]
[421126283,1777115222149,-10000.0,8.594e-05,2]
[421126284,1777115223233,-10000.0,8.594e-05,2]
[421126285,1777115224279,-10000.0,8.594e-05,2]
[421126286,1777115225546,-10000.0,8.594e-05,2]
[421126287,1777115226712,-10000.0,8.594e-05,2]
[421126288,1777115232435,-9000.0,8.594e-05,2]
[421126289,1777115243677,-10000.0,8.594e-05,2]
[421126290,1777115248384,-1488.0,8.594e-05,2]
[421126291,1777115271442,-2337.9305835,8.508e-05,2]
[421126292,1777115271469,-7662.0694165,8.594e-05,2]
[421126293,1777115272483,-5000.0,8.423e-05,2]
[421126294,1777115272512,-5000.0,8.594e-05,2]
[421126295,1777115273446,-10000.0,8.594e-05,2]
[421126296,1777115274288,-10000.0,8.594e-05,2]
[421126297,1777115275375,-8806.09817999,8.594e-05,2]
[421126298,1777115275400,-1193.90182001,8.594e-05,2]
[421126299,1777115276267,-10000.0,8.594e-05,2]
[421126300,1777115277108,-10000.0,8.594e-05,2]
[421126301,1777115277977,-3307.9735613,8.545e-05,2]
[421126302,1777115278006,-6692.0264387,8.594e-05,2]
[421126303,1777115278922,-10000.0,8.594e-05,2]
[421126304,1777115279854,-10000.0,8.594e-05,2]
[421126305,1777115280818,-10000.0,8.594e-05,2]
[421126306,1777115298503,-3000.0,8.508e-05,2]
[421126307,1777115311171,-800.0,8.423e-05,2]
[421126309,1777115400119,-530.0,8.423e-05,2]
[421126310,1777115418078,-151.0,7.968e-05,2]
[421126311,1777115418102,-1153.95692031,8.423e-05,2]
[421126469,1777115438331,-1042.37256033,8.508e-05,2]
[421126470,1777115438436,-116.72539458,8.508e-05,2]
[421126471,1777115438447,-500.0,8.593e-05,2]
[421126472,1777115438457,-400.11573984,8.593e-05,2]
[421126473,1777115438466,-588.6546108,8.593e-05,2]
[421126474,1777115438476,-174.25056115,8.593e-05,2]
[421126475,1777115438485,-300.0,8.593e-05,2]
[421126476,1777115438494,-35211.60258324,8.594e-05,2]
[421126477,1777115438506,-2701.67071023,8.594e-05,2]
[421126484,1777115440533,-459.34763194,8.594e-05,2]
[421126486,1777115441236,-69.2604395,8.594e-05,2]
[421126497,1777115443312,-589.59989191,8.508e-05,2]
[421126506,1777115446611,-1455.94170363,8.508e-05,2]
[421126507,1777115446621,-17846.00889553,8.594e-05,2]
[421126514,1777116177066,-455.8715388,7.968e-05,2]
[421126515,1777116177088,-151.0,7.968e-05,2]
[421126516,1777116177111,-263.24554544,8.125e-05,2]
[421126517,1777116177137,-9129.88291576,8.594e-05,2]
[421126518,1777116178816,-10000.0,8.594e-05,2]
[421126519,1777116180767,-10000.0,8.594e-05,2]
[421126520,1777116181837,-10000.0,8.594e-05,2]
[421126521,1777116187008,-3190.0,8.594e-05,2]
[421126638,1777116640876,-5000.0,7.889e-05,2]
[421126639,1777116640885,-325.424704,7.968e-05,2]
[421126640,1777116640894,-274.27438479,8.51e-05,2]
[421126641,1777116640903,-572.52551837,8.583e-05,2]
[421126642,1777116640913,-1596.37539284,8.584e-05,2]
[421126643,1777116640999,-0.77709523,8.584e-05,2]
[421126650,1777116643628,-1888.90328211,8.584e-05,2]
[421126651,1777116643641,-906.94653982,8.584e-05,2]
[421126652,1777116643683,-3166.47645286,8.584e-05,2]
[421126653,1777116643698,-1275.38190145,8.584e-05,2]
[421126656,1777116646966,-6906.44811364,8.584e-05,2]
[421126657,1777116681641,-311.38571959,8.498e-05,2]
[421126658,1777116681668,-300.0,8.583e-05,2]
[421126659,1777116681721,-34.01494969,8.584e-05,2]
[421126660,1777116710892,-200.0,7.59e-05,2]
[421126661,1777116710919,-11.38571959,7.79e-05,2]
[421126662,1777116710955,-188.61428041,7.79e-05,2]
[421126847,1777117838783,-281.02889709,7.796e-05,2]
[421126849,1777117838793,-153.97110291,7.918e-05,2]
[421126852,1777117838835,-142.65087416,7.918e-05,2]
[421126854,1777117838845,-151.0,7.953e-05,2]
[421126855,1777117838855,-167.14675055,8.333e-05,2]
[421126857,1777117838865,-300.0,8.488e-05,2]
[421126859,1777117838874,-537.6845,8.489e-05,2]
[421126860,1777117838884,-495.1313095,8.489e-05,2]
[421126862,1777117838893,-2150.738,8.489e-05,2]
[421126863,1777117838902,-500.0,8.493e-05,2]
[421126865,1777117838912,-500.0,8.493e-05,2]
[421126866,1777117838921,-429.36541014,8.493e-05,2]
[421126868,1777117838931,-500.0,8.493e-05,2]
[421126870,1777117838940,-500.0,8.493e-05,2]
[421126871,1777117838950,-500.0,8.493e-05,2]
[421126873,1777117838959,-500.0,8.493e-05,2]
[421126874,1777117838969,-500.0,8.493e-05,2]
[421126876,1777117838979,-500.0,8.493e-05,2]
[421126878,1777117838989,-557.5788265,8.544e-05,2]
[421126879,1777117838999,-152.0,8.558e-05,7]
[421126881,1777117839009,-152.0,8.575e-05,7]
[421126883,1777117839019,-152.0,8.575e-05,7]
[421126884,1777117839028,-12080.94346826,8.584e-05,2]
[421126886,1777117839039,-224.64603691,8.593e-05,2]
[421126888,1777117839049,-500.0,8.594e-05,2]
[421126889,1777117839059,-424.22402074,8.594e-05,2]
[421126891,1777117839068,-763.60323734,8.594e-05,2]
[421126892,1777117839078,-1357.51686638,8.594e-05,2]
[421126894,1777117839087,-2121.12010372,8.594e-05,2]
[421126896,1777117839097,-2259.01863528,8.594e-05,2]
[421126898,1777117839121,-795.39431407,8.594e-05,2]
[421126900,1777117839132,-2377.37228692,8.594e-05,2]
[421126901,1777117839143,-1780.02311636,8.594e-05,2]
[421126903,1777117839153,-5430.06746551,8.594e-05,2]
[421126905,1777117839163,-6401.4725144,8.594e-05,2]
[421126907,1777117839180,-470.95662164,8.594e-05,2]
[421126908,1777117839189,-8484.48041487,8.594e-05,2]
[421126910,1777117839199,-195.34909468,8.594e-05,2]
[421126912,1777117839209,-351.62837042,8.594e-05,2]
[421126913,1777117839218,-625.11710296,8.594e-05,2]
[421126915,1777117839228,-976.74547338,8.594e-05,2]
[421126917,1777117839238,-1406.51348166,8.594e-05,2]
[421126918,1777117839247,-1914.42112782,8.594e-05,2]
[421126920,1777117839256,-2500.46841184,8.594e-05,2]
[421126922,1777117839266,-3164.65533374,8.594e-05,2]
[421126923,1777117839275,-3906.9818935,8.594e-05,2]
[421126925,1777117839285,-10266.22130199,8.594e-05,2]
[421126927,1777117839295,-12217.65179741,8.594e-05,2]
[421126928,1777117839305,-14338.77190112,8.594e-05,2]
[421126930,1777117839315,-16629.58161314,8.594e-05,2]
[421126931,1777117839324,-19090.08093345,8.594e-05,2]
[421126933,1777117839334,-21720.26986206,8.594e-05,2]
[421126934,1777117839344,-24520.14839896,8.594e-05,2]
[421126936,1777117839354,-27489.71654416,8.594e-05,2]
[421126937,1777117839364,-30628.97429766,8.594e-05,2]
[421126939,1777117839374,-33903.9837378,8.594e-05,2]
[421126940,1777117839383,-151.0,8.594e-05,2]
[421126942,1777117839393,-4727.44809114,8.594e-05,2]
[421126943,1777117839402,-5626.05392664,8.594e-05,2]
[421126945,1777117839412,-6602.79940002,8.594e-05,2]
[421126947,1777117839421,-7657.68451126,8.594e-05,2]
[421126948,1777117839431,-5507.02596615,8.594e-05,2]
[421127042,1777117841099,-3283.68329423,8.594e-05,2]
[421127043,1777117841108,-7835.43059186,8.594e-05,2]
[421127044,1777117841119,-1021.21841667,8.594e-05,2]
[421127252,1777117843813,-396.5857275,8.594e-05,2]
[421127536,1777117847149,-748.63891133,8.594e-05,2]
[421127537,1777117847159,-11291.17767222,8.594e-05,2]
[421127538,1777117847168,-9520.89106269,8.594e-05,2]
[421127539,1777117847204,-3137.73027225,8.594e-05,2]
[421127540,1777117847213,-10885.70307505,8.594e-05,2]
[421127683,1777118462481,-300.0,7.599e-05,2]
[421127684,1777118462526,-300.0,7.6e-05,2]
[421127685,1777118462542,-2900.07483341,7.6e-05,2]
[421127754,1777118834987,-321.97772359,6.938e-05,2]
[421127771,1777119032086,-4678.02227641,6.869e-05,2]
[421127772,1777119032097,-275.40831915,7.044e-05,2]
[421127773,1777119032107,-1200.0,7.595e-05,2]
[421127774,1777119032117,-300.0,7.596e-05,2]
[421127775,1777119032127,-300.0,7.596e-05,2]
[421127776,1777119032137,-300.0,7.596e-05,2]
[421127777,1777119032147,-273.0,7.597e-05,2]
[421127778,1777119032157,-1287.71594508,7.598e-05,2]
[421127779,1777119032169,-2245.56796129,7.598e-05,2]
[421127780,1777119032179,-3330.94165932,7.6e-05,2]
[421127781,1777119032191,-1120.78017483,7.6e-05,2]
[421127794,1777119038154,-37891.27847055,7.6e-05,2]
[421127795,1777119038167,-287.1149339,7.6e-05,2]
[421127798,1777119040343,-15539.8,7.6e-05,2]
[421127918,1777119046302,-929.08524119,7.524e-05,2]
[421128015,1777120231979,-281.6786739,6.675e-05,2]
[421128022,1777120232036,-469.74779629,6.675e-05,2]
[421128024,1777120232047,-3319.48828862,6.675e-05,2]
[421128026,1777120232057,-277.52015277,6.81e-05,2]
[421128028,1777120232067,-569.38963267,6.829e-05,2]
[421128030,1777120232077,-300.0,6.997e-05,2]
[421128032,1777120232087,-300.0,6.997e-05,2]
[421128034,1777120232096,-233.60192594,6.997e-05,2]
[421128036,1777120232108,-966.39807406,6.997e-05,2]
[421128038,1777120232118,-300.0,6.999e-05,2]
[421128040,1777120232128,-282.81260406,7e-05,2]
[421128149,1777120240059,-5117.0661435,7e-05,2]
[421128150,1777120240087,-943.065,7e-05,2]
[421128151,1777120240350,-2075.00998034,7e-05,2]
[421128153,1777120241665,-381.21178026,7e-05,2]
[421128169,1777120243751,-6813.13413827,7e-05,2]
[421128170,1777120243761,-300.0,7.139e-05,2]
[421128171,1777120243770,-300.0,7.139e-05,2]
[421128172,1777120243779,-300.0,7.139e-05,2]
[421128173,1777120243790,-300.0,7.139e-05,2]
[421128174,1777120243800,-300.0,7.139e-05,2]
[421128175,1777120243811,-300.0,7.139e-05,2]
[421128176,1777120243821,-300.0,7.139e-05,2]
[421128177,1777120243830,-300.0,7.139e-05,2]
[421128178,1777120243840,-300.0,7.139e-05,2]
[421128179,1777120243850,-300.0,7.139e-05,2]
[421128180,1777120243859,-300.0,7.139e-05,2]
[421128181,1777120243868,-300.0,7.139e-05,2]
[421128182,1777120243877,-300.0,7.139e-05,2]
[421128183,1777120243887,-300.0,7.139e-05,2]
[421128184,1777120243895,-300.0,7.139e-05,2]
[421128185,1777120243905,-325.4247041,7.232e-05,2]
[421128186,1777120243916,-436.59615668,7.591e-05,2]
[421128187,1777120243926,-500.0,7.591e-05,2]
[421128188,1777120243936,-500.0,7.591e-05,2]
[421128189,1777120243945,-500.0,7.591e-05,2]
[421128190,1777120243954,-501.52386018,7.591e-05,2]
[421128191,1777120243964,-500.0,7.591e-05,2]
[421128192,1777120243974,-500.0,7.591e-05,2]
[421128193,1777120243984,-500.0,7.591e-05,2]
[421128194,1777120243993,-500.0,7.591e-05,2]
[421128195,1777120244002,-500.0,7.591e-05,2]
[421128196,1777120244011,-500.0,7.591e-05,2]
[421128197,1777120244020,-500.0,7.591e-05,2]
[421128198,1777120244029,-500.0,7.591e-05,2]
[421128199,1777120244039,-500.0,7.591e-05,2]
[421128200,1777120244048,-500.0,7.591e-05,2]
[421128201,1777120244057,-500.0,7.591e-05,2]
[421128202,1777120244067,-500.0,7.591e-05,2]
[421128203,1777120244076,-500.0,7.591e-05,2]
[421128204,1777120244085,-500.0,7.591e-05,2]
[421128205,1777120244094,-500.0,7.591e-05,2]
[421128206,1777120244103,-500.0,7.591e-05,2]
[421128207,1777120244112,-500.0,7.591e-05,2]
[421128208,1777120244121,-500.0,7.591e-05,2]
[421128209,1777120244130,-500.0,7.591e-05,2]
[421128210,1777120244139,-500.0,7.591e-05,2]
[421128211,1777120244148,-500.0,7.591e-05,2]
[421128212,1777120244158,-500.0,7.591e-05,2]
[421128213,1777120244167,-500.0,7.591e-05,2]
[421128214,1777120244176,-500.0,7.591e-05,2]
[421128215,1777120244185,-393.00419781,7.591e-05,2]
[421128216,1777120244195,-500.0,7.591e-05,2]
[421128217,1777120244204,-500.0,7.591e-05,2]
[421128218,1777120244213,-500.0,7.591e-05,2]
[421128219,1777120244222,-500.0,7.591e-05,2]
[421128220,1777120244232,-500.0,7.591e-05,2]
[421128221,1777120244240,-500.0,7.591e-05,2]
[421128222,1777120244250,-500.0,7.591e-05,2]
[421128223,1777120244259,-300.0,7.591e-05,2]
[421128224,1777120244268,-21977.73659536,7.6e-05,2]
[421128230,1777120246724,-34433.70212801,7.6e-05,2]
[421128231,1777120246735,-355.3,7.6e-05,2]
[421128232,1777120262231,-956.78638887,7.6e-05,2]
[421128243,1777120897319,10000.0,0.00011,30]
[421128244,1777120912457,8995.0,0.00011,30]
[421128246,1777121091517,-1256.78638887,7.036e-05,2]
[421128247,1777121091540,-454.5307909,7.107e-05,2]
[421128248,1777121091565,-271.96974971,7.402e-05,2]
[421128249,1777121091589,-1200.0,7.599e-05,2]
[421128250,1777121091612,-300.0,7.599e-05,2]
[421128251,1777121091636,-465.88935531,7.599e-05,2]
[421128252,1777121091657,-6050.82371521,7.6e-05,2]
[421128253,1777121093462,-10000.0,7.6e-05,2]
[421128254,1777121094408,-10000.0,7.6e-05,2]
[421128255,1777121095314,-10000.0,7.6e-05,2]
[421128256,1777121095993,-10000.0,7.6e-05,2]
[421128257,1777121096635,-10000.0,7.6e-05,2]
[421128258,1777121097657,-10000.0,7.6e-05,2]
[421128259,1777121098132,-10000.0,7.6e-05,2]
[421128260,1777121098940,-10000.0,7.6e-05,2]
[421128261,1777121099961,-10000.0,7.6e-05,2]
[421128262,1777121100822,-10000.0,7.6e-05,2]
[421128263,1777121101618,-4149.88678708,7.6e-05,2]
[421128264,1777121101643,-600.0,7.748e-05,2]
[421128265,1777121101667,-293.2971361,7.748e-05,2]
[421128266,1777121101693,-300.0,7.751e-05,2]
[421128267,1777121101718,-300.0,7.751e-05,2]
[421128268,1777121101742,-300.0,7.751e-05,2]
[421128269,1777121101767,-300.0,7.751e-05,2]
[421128270,1777121101792,-300.0,7.751e-05,2]
[421128271,1777121101817,-300.0,7.751e-05,2]
[421128272,1777121101840,-300.0,7.751e-05,2]
[421128273,1777121101866,-300.0,7.751e-05,2]
[421128274,1777121101890,-300.0,7.751e-05,2]
[421128275,1777121101913,-300.0,7.751e-05,2]
[421128276,1777121101937,-300.0,7.751e-05,2]
[421128277,1777121101960,-300.0,7.751e-05,2]
[421128278,1777121101983,-300.0,7.751e-05,2]
[421128279,1777121102005,-300.0,7.751e-05,2]
[421128280,1777121102028,-300.0,7.751e-05,2]
[421128281,1777121102052,-456.81607682,7.929e-05,2]
[421128282,1777121103664,-529.0,8e-05,2]
[421128283,1777121106884,300.0,7.599e-05,2]
[421128284,1777121145681,-154.30776331,8e-05,2]